[Event "Live Chess"]
[Site "Chess.com"]
[Date "2024.06.02"]
[Round "-"]
[White "TheSmoulderingMaster"]
[Black "Cruiseylee78"]
[Result "0-1"]
[WhiteElo "1756"]
[BlackElo "1711"]
[TimeControl "300"]
[EndTime "17:15:45 PDT"]
[Termination "Cruiseylee78 won by checkmate"]

1. e4 {[%clk 0:04:57.7]} 1... d6 {[%clk 0:04:57.1]} 2. d4 {[%clk 0:04:56.1]}
2... Nd7 {[%clk 0:04:57]} 3. Nc3 {[%clk 0:04:55.4]} 3... e5 {[%clk 0:04:54.3]}
4. Nf3 {[%clk 0:04:53.5]} 4... h6 {[%clk 0:04:52.5]} 5. Be3 {[%clk 0:04:50.3]}
5... c6 {[%clk 0:04:52]} 6. Bc4 {[%clk 0:04:48.8]} 6... Qc7 {[%clk 0:04:50.2]}
7. Bb3 {[%clk 0:04:47.9]} 7... Ngf6 {[%clk 0:04:48.6]} 8. O-O {[%clk 0:04:45.9]}
8... g5 {[%clk 0:04:47.2]} 9. h3 {[%clk 0:04:43.2]} 9... Be7 {[%clk 0:04:46.1]}
10. d5 {[%clk 0:04:40.4]} 10... Nf8 {[%clk 0:04:44.1]} 11. Qd2 {[%clk 0:04:37]}
11... Ng6 {[%clk 0:04:42]} 12. Rad1 {[%clk 0:04:33.8]} 12... Nf4 {[%clk
0:04:40.3]} 13. Bxf4 {[%clk 0:04:33.1]} 13... gxf4 {[%clk 0:04:39.1]} 14. Qd3
{[%clk 0:04:26.6]} 14... Rg8 {[%clk 0:04:36.1]} 15. Qc4 {[%clk 0:04:24]} 15...
Bxh3 {[%clk 0:04:33.8]} 16. Nh4 {[%clk 0:04:19.5]} 16... Nxe4 {[%clk 0:04:16.8]}
17. dxc6 {[%clk 0:04:11.7]} 17... Bxh4 {[%clk 0:04:10]} 18. g3 {[%clk
0:04:02.7]} 18... fxg3 {[%clk 0:04:03.9]} 19. f3 {[%clk 0:03:54.8]} 19... Nxc3
{[%clk 0:03:54.7]} 20. cxb7 {[%clk 0:03:53.5]} 20... Rb8 {[%clk 0:03:48.4]} 21.
Qxc7 {[%clk 0:03:49.9]} 21... Ne2+ {[%clk 0:03:20.4]} 22. Kh1 {[%clk 0:03:40.1]}
22... g2+ {[%clk 0:03:17.8]} 23. Kh2 {[%clk 0:03:39.5]} 23... Bg3+ {[%clk
0:01:36]} 24. Kxh3 {[%clk 0:03:37.5]} 24... Nf4# {[%clk 0:01:33.1]} 0-1

[Event "Live Chess"]
[Site "Chess.com"]
[Date "2024.06.02"]
[Round "-"]
[White "grillage"]
[Black "Duke_of_Bebington"]
[Result "0-1"]
[WhiteElo "1846"]
[BlackElo "1635"]
[TimeControl "300"]
[EndTime "17:16:11 PDT"]
[Termination "Duke_of_Bebington won by resignation"]

1. d4 {[%clk 0:04:56.7]} 1... d5 {[%clk 0:04:58.7]} 2. Nf3 {[%clk 0:04:55.1]}
2... Nf6 {[%clk 0:04:56.6]} 3. c4 {[%clk 0:04:54.2]} 3... c6 {[%clk 0:04:55.3]}
4. Qc2 {[%clk 0:04:51.8]} 4... Bg4 {[%clk 0:04:35.3]} 5. Ne5 {[%clk 0:04:47.2]}
5... Bh5 {[%clk 0:04:33.4]} 6. Bf4 {[%clk 0:04:42.2]} 6... Nbd7 {[%clk
0:04:28.3]} 7. e3 {[%clk 0:04:39.4]} 7... Nxe5 {[%clk 0:04:25]} 8. Bxe5 {[%clk
0:04:38.2]} 8... Nd7 {[%clk 0:04:22.6]} 9. Bg3 {[%clk 0:04:35.1]} 9... Bg6
{[%clk 0:04:21.8]} 10. Qb3 {[%clk 0:04:33.5]} 10... Qb6 {[%clk 0:04:19.8]} 11.
c5 {[%clk 0:04:27.8]} 11... Qxb3 {[%clk 0:04:18.4]} 12. axb3 {[%clk 0:04:26.2]}
12... b6 {[%clk 0:04:17.5]} 13. b4 {[%clk 0:04:22.9]} 13... e6 {[%clk
0:04:16.5]} 14. Nc3 {[%clk 0:04:16.2]} 14... a5 {[%clk 0:04:12.9]} 15. cxb6
{[%clk 0:03:46]} 15... Nxb6 {[%clk 0:04:08.9]} 16. Rxa5 {[%clk 0:03:36.6]} 16...
Bxb4 {[%clk 0:03:58.7]} 17. Rxa8+ {[%clk 0:03:35.2]} 17... Nxa8 {[%clk
0:03:57.3]} 18. Be2 {[%clk 0:03:23.9]} 18... O-O {[%clk 0:03:55.6]} 19. O-O
{[%clk 0:03:22.5]} 19... Nb6 {[%clk 0:03:51.4]} 20. Ra1 {[%clk 0:03:20.8]} 20...
Ra8 {[%clk 0:03:44.3]} 21. Rxa8+ {[%clk 0:03:18.4]} 21... Nxa8 {[%clk
0:03:43.3]} 22. Na4 {[%clk 0:03:12.5]} 22... Kf8 {[%clk 0:03:19.4]} 23. Ba6
{[%clk 0:03:10.4]} 23... Ba5 {[%clk 0:03:13.4]} 24. Bb7 {[%clk 0:03:07]} 24...
Nb6 {[%clk 0:03:12.5]} 25. Ba8 {[%clk 0:03:03.3]} 25... Nxa4 {[%clk 0:03:07.5]}
26. Bxc6 {[%clk 0:03:01.1]} 26... Nxb2 {[%clk 0:03:05.5]} 27. Bd6+ {[%clk
0:02:34.6]} 27... Kg8 {[%clk 0:02:57.3]} 28. Kf1 {[%clk 0:02:32.7]} 28... Bd3+
{[%clk 0:02:53.7]} 29. Kg1 {[%clk 0:02:30.5]} 29... Bc4 {[%clk 0:02:44.9]} 30.
g3 {[%clk 0:02:26.4]} 30... Nd3 {[%clk 0:02:43.4]} 31. Kg2 {[%clk 0:02:25.2]}
31... Be1 {[%clk 0:02:41.4]} 32. f3 {[%clk 0:02:19]} 32... f6 {[%clk 0:02:36.7]}
33. e4 {[%clk 0:02:16.9]} 33... Kf7 {[%clk 0:02:26.1]} 34. Ba3 {[%clk
0:02:07.9]} 34... Bb4 {[%clk 0:02:18]} 35. Bxb4 {[%clk 0:02:02.5]} 35... Nxb4
{[%clk 0:02:16.7]} 36. Bb7 {[%clk 0:02:00.7]} 36... dxe4 {[%clk 0:02:10.9]} 37.
fxe4 {[%clk 0:01:56.9]} 37... Ke7 {[%clk 0:01:58.8]} 38. Kf3 {[%clk 0:01:53.1]}
38... Kd6 {[%clk 0:01:57.8]} 39. h4 {[%clk 0:01:51.1]} 39... Nc2 {[%clk
0:01:52.7]} 40. d5 {[%clk 0:01:45.4]} 40... exd5 {[%clk 0:01:51.4]} 41. Bc8
{[%clk 0:01:37.9]} 41... Nd4+ {[%clk 0:01:41.9]} 42. Ke3 {[%clk 0:01:36.2]}
42... Ne6 {[%clk 0:01:36.7]} 43. exd5 {[%clk 0:01:30.2]} 43... Bxd5 {[%clk
0:01:35.5]} 44. Ba6 {[%clk 0:01:28.8]} 44... h6 {[%clk 0:01:29.7]} 45. Bd3
{[%clk 0:01:23.8]} 45... Ke5 {[%clk 0:01:28]} 46. Bh7 {[%clk 0:01:19.7]} 46...
Nc5 {[%clk 0:01:24.1]} 47. Bg6 {[%clk 0:01:17.3]} 47... Be4 {[%clk 0:01:21.5]}
48. Be8 {[%clk 0:01:15.4]} 48... g5 {[%clk 0:01:16.9]} 49. hxg5 {[%clk
0:01:13.8]} 49... hxg5 {[%clk 0:01:15.6]} 50. Bh5 {[%clk 0:01:10]} 50... Ne6
{[%clk 0:01:11.5]} 51. Bd1 {[%clk 0:01:03.9]} 51... Nd4 {[%clk 0:01:10.1]} 52.
Ba4 {[%clk 0:00:59.3]} 52... Nf5+ {[%clk 0:01:08.8]} 53. Kf2 {[%clk 0:00:57.8]}
53... Nh6 {[%clk 0:01:06.2]} 54. Bd7 {[%clk 0:00:53.1]} 54... f5 {[%clk
0:01:04.8]} 55. Bc8 {[%clk 0:00:50.8]} 55... f4 {[%clk 0:01:03.4]} 56. gxf4+
{[%clk 0:00:50]} 56... gxf4 {[%clk 0:01:02.6]} 57. Bd7 {[%clk 0:00:43]} 57...
Bf5 {[%clk 0:00:58]} 58. Be8 {[%clk 0:00:41.6]} 58... Ng4+ {[%clk 0:00:56.8]}
59. Kf3 {[%clk 0:00:37.7]} 59... Nf6 {[%clk 0:00:55]} 60. Bc6 {[%clk 0:00:34.1]}
60... Be4+ {[%clk 0:00:50.8]} 61. Bxe4 {[%clk 0:00:32.5]} 61... Nxe4 {[%clk
0:00:50.2]} 62. Ke2 {[%clk 0:00:31.1]} 62... Kf5 {[%clk 0:00:46.4]} 63. Kf3
{[%clk 0:00:29.7]} 63... Ng5+ {[%clk 0:00:45]} 64. Kf2 {[%clk 0:00:28.9]} 64...
Kg4 {[%clk 0:00:43.9]} 65. Kg2 {[%clk 0:00:27.6]} 65... f3+ {[%clk 0:00:41.1]}
66. Kf2 {[%clk 0:00:26.8]} 66... Nh3+ {[%clk 0:00:40.5]} 67. Kf1 {[%clk
0:00:25.3]} 67... Kg3 {[%clk 0:00:38.2]} 68. Ke1 {[%clk 0:00:23]} 68... Kg2
{[%clk 0:00:37.2]} 0-1

[Event "Live Chess"]
[Site "Chess.com"]
[Date "2024.06.02"]
[Round "-"]
[White "booktrunk"]
[Black "MagnersCarlsberg2870"]
[Result "0-1"]
[WhiteElo "1474"]
[BlackElo "1774"]
[TimeControl "300"]
[EndTime "17:16:28 PDT"]
[Termination "MagnersCarlsberg2870 won by checkmate"]

1. d4 {[%clk 0:04:38.4]} 1... Nf6 {[%clk 0:04:55.9]} 2. Nc3 {[%clk 0:04:29.8]}
2... d5 {[%clk 0:04:50.1]} 3. Bf4 {[%clk 0:04:29.7]} 3... e6 {[%clk 0:04:44]} 4.
Nb5 {[%clk 0:04:26.8]} 4... Na6 {[%clk 0:04:42.1]} 5. e3 {[%clk 0:04:24.5]} 5...
c6 {[%clk 0:04:40]} 6. Nc3 {[%clk 0:04:22]} 6... Bb4 {[%clk 0:04:39.1]} 7. a3
{[%clk 0:04:17.7]} 7... Bxc3+ {[%clk 0:04:36.8]} 8. bxc3 {[%clk 0:04:16.3]} 8...
Qa5 {[%clk 0:04:34.1]} 9. Ne2 {[%clk 0:04:11.2]} 9... Ne4 {[%clk 0:04:32.2]} 10.
Qd3 {[%clk 0:04:09]} 10... e5 {[%clk 0:04:18.4]} 11. Bxe5 {[%clk 0:04:04]} 11...
f6 {[%clk 0:04:17.3]} 12. Bf4 {[%clk 0:04:02.4]} 12... Bf5 {[%clk 0:04:16.2]}
13. f3 {[%clk 0:03:46.1]} 13... Ng3 {[%clk 0:04:10.2]} 14. Qd2 {[%clk
0:03:42.5]} 14... Nxh1 {[%clk 0:04:08.7]} 15. g4 {[%clk 0:03:41.1]} 15... Bg6
{[%clk 0:03:59.4]} 16. Bg2 {[%clk 0:03:40.2]} 16... O-O {[%clk 0:03:52]} 17.
Bxh1 {[%clk 0:03:38.5]} 17... Rfe8 {[%clk 0:03:50.7]} 18. Bg2 {[%clk 0:03:36.7]}
18... c5 {[%clk 0:03:43.6]} 19. dxc5 {[%clk 0:03:34.8]} 19... Qxc5 {[%clk
0:03:41.5]} 20. Nd4 {[%clk 0:03:25.3]} 20... Nc7 {[%clk 0:03:30.3]} 21. Nb3
{[%clk 0:03:21.9]} 21... Qe7 {[%clk 0:03:16.6]} 22. a4 {[%clk 0:03:09.8]} 22...
Rad8 {[%clk 0:03:12.4]} 23. Nd4 {[%clk 0:03:06]} 23... Ne6 {[%clk 0:03:07.5]}
24. Nxe6 {[%clk 0:03:00]} 24... Qxe6 {[%clk 0:03:06.2]} 25. Kf2 {[%clk
0:02:56.3]} 25... Rc8 {[%clk 0:03:02]} 26. Bf1 {[%clk 0:02:54.6]} 26... a6
{[%clk 0:02:58.4]} 27. Bd3 {[%clk 0:02:52.4]} 27... Qc6 {[%clk 0:02:49.3]} 28.
Bxg6 {[%clk 0:02:50.5]} 28... hxg6 {[%clk 0:02:47.9]} 29. Ra3 {[%clk 0:02:45.2]}
29... Qc5 {[%clk 0:02:45]} 30. Rb3 {[%clk 0:02:40.5]} 30... b5 {[%clk
0:02:37.1]} 31. axb5 {[%clk 0:02:35.9]} 31... axb5 {[%clk 0:02:36.2]} 32. Qd3
{[%clk 0:02:33.7]} 32... g5 {[%clk 0:02:31.3]} 33. Bg3 {[%clk 0:02:26]} 33... b4
{[%clk 0:02:14.1]} 34. Rxb4 {[%clk 0:02:22.4]} 34... Qxc3 {[%clk 0:02:12.8]} 35.
Qxc3 {[%clk 0:02:20.3]} 35... Rxc3 {[%clk 0:02:11.5]} 36. Rb2 {[%clk 0:02:18.9]}
36... Rexe3 {[%clk 0:02:06.5]} 37. Kg2 {[%clk 0:02:17.4]} 37... Rxf3 {[%clk
0:02:04.5]} 38. Bf2 {[%clk 0:02:17.3]} 38... Rf4 {[%clk 0:01:52.3]} 39. Rb8+
{[%clk 0:02:00.1]} 39... Kf7 {[%clk 0:01:48.2]} 40. Rb7+ {[%clk 0:01:58.3]}
40... Kg6 {[%clk 0:01:45.6]} 41. h3 {[%clk 0:01:49.8]} 41... Rxc2 {[%clk
0:01:43.6]} 42. Kg1 {[%clk 0:01:48.7]} 42... Rfxf2 {[%clk 0:01:42]} 43. Rxg7+
{[%clk 0:01:46.5]} 43... Kxg7 {[%clk 0:01:40.2]} 44. h4 {[%clk 0:01:46.4]} 44...
Rfd2 {[%clk 0:01:38.5]} 45. hxg5 {[%clk 0:01:45.3]} 45... Rc1# {[%clk
0:01:37.4]} 0-1

[Event "Live Chess"]
[Site "Chess.com"]
[Date "2024.06.02"]
[Round "-"]
[White "KeithArkell"]
[Black "Queensandpawns"]
[Result "1-0"]
[WhiteElo "2429"]
[BlackElo "2305"]
[TimeControl "300"]
[EndTime "17:16:43 PDT"]
[Termination "KeithArkell won by resignation"]

1. d4 {[%clk 0:04:57]} 1... Nc6 {[%clk 0:04:48]} 2. Nf3 {[%clk 0:04:56]} 2... g6
{[%clk 0:04:46.4]} 3. d5 {[%clk 0:04:55.2]} 3... Nb8 {[%clk 0:04:45.7]} 4. c4
{[%clk 0:04:54.6]} 4... Bg7 {[%clk 0:04:45.4]} 5. Nc3 {[%clk 0:04:54]} 5... d6
{[%clk 0:04:45.1]} 6. g3 {[%clk 0:04:52.1]} 6... Nd7 {[%clk 0:04:44.7]} 7. Bg2
{[%clk 0:04:51.4]} 7... a5 {[%clk 0:04:44.4]} 8. O-O {[%clk 0:04:50.4]} 8...
Ngf6 {[%clk 0:04:44.3]} 9. Be3 {[%clk 0:04:49.6]} 9... O-O {[%clk 0:04:44.2]}
10. Qd2 {[%clk 0:04:48.9]} 10... Ng4 {[%clk 0:04:40.9]} 11. Bd4 {[%clk
0:04:47.2]} 11... Nge5 {[%clk 0:04:39.1]} 12. b3 {[%clk 0:04:44.3]} 12... f5
{[%clk 0:04:28.5]} 13. Rad1 {[%clk 0:04:41.1]} 13... Nxf3+ {[%clk 0:04:20.7]}
14. exf3 {[%clk 0:04:39.7]} 14... Ne5 {[%clk 0:04:20.6]} 15. f4 {[%clk
0:04:38.5]} 15... Ng4 {[%clk 0:04:18.9]} 16. Bxg7 {[%clk 0:04:37]} 16... Kxg7
{[%clk 0:04:18.8]} 17. Qd4+ {[%clk 0:04:36.1]} 17... Nf6 {[%clk 0:04:17.2]} 18.
Rfe1 {[%clk 0:04:35.4]} 18... Re8 {[%clk 0:04:16.3]} 19. Re2 {[%clk 0:04:34.7]}
19... e6 {[%clk 0:03:31.2]} 20. dxe6 {[%clk 0:04:33]} 20... Bxe6 {[%clk
0:03:29.5]} 21. Bxb7 {[%clk 0:04:29.1]} 21... Rb8 {[%clk 0:03:26.9]} 22. Bd5
{[%clk 0:04:23.8]} 22... Bxd5 {[%clk 0:03:25.3]} 23. Rxe8 {[%clk 0:04:22.6]}
23... Qxe8 {[%clk 0:03:24.1]} 24. Nxd5 {[%clk 0:04:21.4]} 24... Qf7 {[%clk
0:03:23.8]} 25. Re1 {[%clk 0:04:18.1]} 25... c6 {[%clk 0:03:17.5]} 1-0

[Event "Live Chess"]
[Site "Chess.com"]
[Date "2024.06.02"]
[Round "-"]
[White "CarmelJane"]
[Black "NAZRIZ1977"]
[Result "1-0"]
[WhiteElo "2074"]
[BlackElo "2132"]
[TimeControl "300"]
[EndTime "17:16:53 PDT"]
[Termination "CarmelJane won - game abandoned"]

1. e4 {[%clk 0:04:57.9]} 1... c5 {[%clk 0:04:55.1]} 2. Nf3 {[%clk 0:04:56.9]}
2... d6 {[%clk 0:04:54.2]} 3. c3 {[%clk 0:04:55.4]} 3... Nf6 {[%clk 0:04:52.6]}
4. Be2 {[%clk 0:04:53.9]} 4... Nc6 {[%clk 0:04:51]} 5. d4 {[%clk 0:04:52.2]}
5... cxd4 {[%clk 0:04:46.8]} 6. cxd4 {[%clk 0:04:52.1]} 6... d5 {[%clk
0:04:43.9]} 7. e5 {[%clk 0:04:49.2]} 7... Ne4 {[%clk 0:04:43]} 8. O-O {[%clk
0:04:47.7]} 8... e6 {[%clk 0:04:38.4]} 9. Nc3 {[%clk 0:04:46.7]} 9... Nxc3
{[%clk 0:04:36.6]} 10. bxc3 {[%clk 0:04:46.6]} 10... Be7 {[%clk 0:04:36]} 11.
Bd3 {[%clk 0:04:44.9]} 11... O-O {[%clk 0:04:34.4]} 12. Qc2 {[%clk 0:04:31.5]}
12... h6 {[%clk 0:04:30.6]} 13. Qe2 {[%clk 0:04:19.2]} 13... Bd7 {[%clk
0:04:28.6]} 14. Bc2 {[%clk 0:04:18.6]} 14... h5 {[%clk 0:04:00.8]} 15. Qd3
{[%clk 0:03:35.1]} 1-0

[Event "Live Chess"]
[Site "Chess.com"]
[Date "2024.06.02"]
[Round "-"]
[White "GwaryTek"]
[Black "Inglaterra"]
[Result "0-1"]
[WhiteElo "1915"]
[BlackElo "2054"]
[TimeControl "300"]
[EndTime "17:17:27 PDT"]
[Termination "Inglaterra won on time"]

1. d4 {[%clk 0:04:58.5]} 1... d5 {[%clk 0:04:57.6]} 2. c4 {[%clk 0:04:45.7]}
2... e6 {[%clk 0:04:57.1]} 3. Nc3 {[%clk 0:04:42.1]} 3... Nf6 {[%clk 0:04:55.9]}
4. Nf3 {[%clk 0:04:40.8]} 4... Be7 {[%clk 0:04:54.1]} 5. Bg5 {[%clk 0:04:39.8]}
5... O-O {[%clk 0:04:52.9]} 6. e3 {[%clk 0:04:36.5]} 6... Nbd7 {[%clk
0:04:51.8]} 7. Qd2 {[%clk 0:04:34.5]} 7... h6 {[%clk 0:04:47.6]} 8. Bxf6 {[%clk
0:04:32.8]} 8... Nxf6 {[%clk 0:04:43.4]} 9. O-O-O {[%clk 0:04:29.4]} 9... b6
{[%clk 0:04:39.6]} 10. Rg1 {[%clk 0:04:28.1]} 10... Bb7 {[%clk 0:04:36.7]} 11.
Ne5 {[%clk 0:04:27]} 11... dxc4 {[%clk 0:04:31.7]} 12. Bxc4 {[%clk 0:04:24.6]}
12... c5 {[%clk 0:04:29.6]} 13. dxc5 {[%clk 0:04:09.9]} 13... Qc7 {[%clk
0:04:17.2]} 14. c6 {[%clk 0:03:53.8]} 14... Bxc6 {[%clk 0:03:47.7]} 15. Nxc6
{[%clk 0:03:50.1]} 15... Qxc6 {[%clk 0:03:47.6]} 16. Bb5 {[%clk 0:03:46.6]}
16... Qc7 {[%clk 0:03:40.2]} 17. Kb1 {[%clk 0:03:44]} 17... Rfd8 {[%clk
0:03:31.2]} 18. Qe2 {[%clk 0:03:35.4]} 18... Bb4 {[%clk 0:03:22.3]} 19. Rc1
{[%clk 0:02:41.8]} 19... Qe5 {[%clk 0:03:15.1]} 20. Bd3 {[%clk 0:02:15.1]} 20...
Rac8 {[%clk 0:03:08.2]} 21. f4 {[%clk 0:02:09.4]} 21... Qa5 {[%clk 0:03:06.4]}
22. Ne4 {[%clk 0:01:58.1]} 22... Rxc1+ {[%clk 0:02:58.1]} 23. Rxc1 {[%clk
0:01:55.5]} 23... Nxe4 {[%clk 0:02:48.5]} 24. Bxe4 {[%clk 0:01:55.4]} 24... Bc5
{[%clk 0:02:32.4]} 25. Rd1 {[%clk 0:01:38.2]} 25... Rxd1+ {[%clk 0:02:08.8]} 26.
Qxd1 {[%clk 0:01:34.9]} 26... g6 {[%clk 0:02:06.4]} 27. Qc1 {[%clk 0:01:01.2]}
27... Qb4 {[%clk 0:01:50.3]} 28. Bf3 {[%clk 0:00:49.9]} 28... a5 {[%clk
0:01:46.5]} 29. g3 {[%clk 0:00:31.3]} 29... a4 {[%clk 0:01:45.1]} 30. a3 {[%clk
0:00:18.9]} 30... Qb5 {[%clk 0:01:40.6]} 31. Ka1 {[%clk 0:00:13.2]} 31... Qd3
{[%clk 0:01:35.6]} 32. Bd1 {[%clk 0:00:08.9]} 32... Bxe3 {[%clk 0:01:29.4]} 33.
Qc8+ {[%clk 0:00:07.2]} 33... Kg7 {[%clk 0:01:28.7]} 34. Qc3+ {[%clk 0:00:06.3]}
34... Qxc3 {[%clk 0:01:26.5]} 35. bxc3 {[%clk 0:00:06.2]} 35... Bg1 {[%clk
0:01:23.3]} 36. g4 {[%clk 0:00:00.1]} 36... Bxh2 {[%clk 0:01:21.9]} 0-1

[Event "Live Chess"]
[Site "Chess.com"]
[Date "2024.06.02"]
[Round "-"]
[White "gobbles19"]
[Black "oscalik"]
[Result "0-1"]
[WhiteElo "2260"]
[BlackElo "2280"]
[TimeControl "300"]
[EndTime "17:17:54 PDT"]
[Termination "oscalik won by checkmate"]

1. e4 {[%clk 0:04:57]} 1... e5 {[%clk 0:04:57.1]} 2. Nf3 {[%clk 0:04:54.9]} 2...
Nc6 {[%clk 0:04:56.5]} 3. Bb5 {[%clk 0:04:53.8]} 3... a6 {[%clk 0:04:55]} 4. Ba4
{[%clk 0:04:53.1]} 4... Bc5 {[%clk 0:04:53.9]} 5. c3 {[%clk 0:04:47.1]} 5... Nf6
{[%clk 0:04:51.3]} 6. d4 {[%clk 0:04:44]} 6... exd4 {[%clk 0:04:51.2]} 7. cxd4
{[%clk 0:04:43.2]} 7... Bb4+ {[%clk 0:04:50.7]} 8. Bd2 {[%clk 0:04:37.2]} 8...
Bxd2+ {[%clk 0:04:45.6]} 9. Nbxd2 {[%clk 0:04:35.9]} 9... O-O {[%clk 0:04:40.6]}
10. O-O {[%clk 0:04:34.1]} 10... d6 {[%clk 0:04:34.7]} 11. h3 {[%clk 0:04:32.9]}
11... Re8 {[%clk 0:04:33.3]} 12. Re1 {[%clk 0:04:29.3]} 12... Bd7 {[%clk
0:04:32.5]} 13. Rc1 {[%clk 0:04:18.3]} 13... Nb4 {[%clk 0:04:30.4]} 14. Bb3
{[%clk 0:04:12.7]} 14... Nd3 {[%clk 0:04:27.1]} 15. Bxf7+ {[%clk 0:04:11.6]}
15... Kxf7 {[%clk 0:04:23.2]} 16. Qb3+ {[%clk 0:04:10.7]} 16... Kf8 {[%clk
0:04:03]} 17. Qxd3 {[%clk 0:04:08.5]} 17... Bb5 {[%clk 0:04:00.5]} 18. Qb3
{[%clk 0:03:57.8]} 18... Nh5 {[%clk 0:03:49.9]} 19. Qd5 {[%clk 0:03:40]} 19...
Nf4 {[%clk 0:03:49.8]} 20. Qf5+ {[%clk 0:03:38.3]} 20... Qf6 {[%clk 0:03:44.1]}
21. Qxf6+ {[%clk 0:03:32.9]} 21... gxf6 {[%clk 0:03:42.5]} 22. Rxc7 {[%clk
0:03:25.1]} 22... Rac8 {[%clk 0:03:15.9]} 23. Rxh7 {[%clk 0:03:19.7]} 23... Nd3
{[%clk 0:03:10.1]} 24. Rb1 {[%clk 0:03:06.4]} 24... Rc2 {[%clk 0:02:58.1]} 25.
Rxb7 {[%clk 0:02:56.5]} 25... Nxb2 {[%clk 0:02:53.7]} 26. Re1 {[%clk 0:01:41.5]}
26... Nd3 {[%clk 0:02:50.5]} 27. Re3 {[%clk 0:01:40.2]} 27... Rxa2 {[%clk
0:02:43.1]} 28. Rxb5 {[%clk 0:01:37.8]} 28... axb5 {[%clk 0:02:43]} 29. Rxd3
{[%clk 0:01:37.2]} 29... Rb8 {[%clk 0:02:36.2]} 30. Rb3 {[%clk 0:01:31.1]} 30...
b4 {[%clk 0:02:32.5]} 31. Nc4 {[%clk 0:01:28.8]} 31... Ra1+ {[%clk 0:02:29.2]}
32. Kh2 {[%clk 0:01:27.7]} 32... Ke7 {[%clk 0:02:28.7]} 33. Nh4 {[%clk
0:01:22.8]} 33... Ke6 {[%clk 0:02:13.4]} 34. d5+ {[%clk 0:01:13]} 34... Kd7
{[%clk 0:02:11.9]} 35. Nf5 {[%clk 0:01:12]} 35... Rc1 {[%clk 0:02:07.4]} 36.
Ncxd6 {[%clk 0:01:07.2]} 36... Rc3 {[%clk 0:02:04.7]} 37. Rb2 {[%clk 0:01:04.6]}
37... b3 {[%clk 0:01:58.7]} 38. e5 {[%clk 0:00:51.2]} 38... fxe5 {[%clk
0:01:55.2]} 39. Ne4 {[%clk 0:00:50.3]} 39... Rc2 {[%clk 0:01:52]} 40. Rb1 {[%clk
0:00:45.2]} 40... b2 {[%clk 0:01:43.6]} 41. Ne3 {[%clk 0:00:44.3]} 41... Rc1
{[%clk 0:01:38.3]} 42. Nd2 {[%clk 0:00:43.3]} 42... Kd6 {[%clk 0:01:32.7]} 43.
h4 {[%clk 0:00:36.4]} 43... Kc5 {[%clk 0:01:25.2]} 44. g4 {[%clk 0:00:32.4]}
44... Kd4 {[%clk 0:01:24.4]} 45. Nf3+ {[%clk 0:00:28.3]} 45... Kc3 {[%clk
0:01:19.2]} 46. Rxb2 {[%clk 0:00:26.2]} 46... Rxb2 {[%clk 0:01:13.1]} 47. Kg3
{[%clk 0:00:25.7]} 47... e4 {[%clk 0:00:56.3]} 48. Ng5 {[%clk 0:00:23.8]} 48...
Kd4 {[%clk 0:00:54]} 49. d6 {[%clk 0:00:22.2]} 49... Rb7 {[%clk 0:00:46.4]} 50.
Nf5+ {[%clk 0:00:20.1]} 50... Ke5 {[%clk 0:00:45.1]} 51. Ne3 {[%clk 0:00:16.6]}
51... Rg1+ {[%clk 0:00:43.2]} 52. Kh2 {[%clk 0:00:15.6]} 52... Ra1 {[%clk
0:00:41.7]} 53. h5 {[%clk 0:00:15.1]} 53... Ra8 {[%clk 0:00:37.7]} 54. Kg3
{[%clk 0:00:13.6]} 54... Rg8 {[%clk 0:00:35.7]} 55. Nh3 {[%clk 0:00:12.6]} 55...
Kxd6 {[%clk 0:00:33.4]} 56. g5 {[%clk 0:00:12.3]} 56... Ke5 {[%clk 0:00:31.6]}
57. Kg4 {[%clk 0:00:12.1]} 57... Rb2 {[%clk 0:00:29.7]} 58. Nc4+ {[%clk
0:00:10.2]} 58... Kd4 {[%clk 0:00:27.6]} 59. Nxb2 {[%clk 0:00:10.1]} 59... e3
{[%clk 0:00:26.5]} 60. Nd1 {[%clk 0:00:10]} 60... e2 {[%clk 0:00:25.5]} 61. Ne3
{[%clk 0:00:07.3]} 61... Kd3 {[%clk 0:00:23.6]} 62. Nf5 {[%clk 0:00:07.2]} 62...
e1=Q {[%clk 0:00:22.4]} 63. Ng3 {[%clk 0:00:07]} 63... Qa1 {[%clk 0:00:20.4]}
64. Nf4+ {[%clk 0:00:06.9]} 64... Kc2 {[%clk 0:00:19.3]} 65. Nfe2 {[%clk
0:00:05.7]} 65... Qa8 {[%clk 0:00:18.8]} 66. Nf4 {[%clk 0:00:05.6]} 66... Kb1
{[%clk 0:00:18]} 67. h6 {[%clk 0:00:04.7]} 67... Qc8+ {[%clk 0:00:17.6]} 68. Kh5
{[%clk 0:00:03.9]} 68... Rf8 {[%clk 0:00:17.4]} 69. g6 {[%clk 0:00:03.8]} 69...
Rxf4 {[%clk 0:00:16.5]} 70. g7 {[%clk 0:00:02.7]} 70... Qg4# {[%clk 0:00:16.1]}
0-1